Cogmind - Beta 14 @@@ ROGUE MODE // 2024.10.31 @ 19:15:56 Player: Xellophane Result: Destroyed self with Rocket Launcher Performance ------------- Evolutions (0) 0 Regions Visited (2) 400 Robots Destroyed (20) 100 Value Destroyed (409) 409 Prototype IDs (0) 0 Alien Tech Used (0) 0 Bonus (0) 0 TOTAL SCORE: 909 Bonus ------- None Cogmind --------- Core Integrity 0/250 Matter 240/300 Energy 250/250 System Corruption 0% Temperature Cool (16) Movement Walking (400) Ox4 Location -10/Mines Parts ------- > --- POWER (1) -------- Ion Engine > --- PROPULSION (2) --- Aluminum Leg > --- UTILITY (2) ------ High-capacity Storage Unit Signal Interpreter > --- WEAPON (2) ------- Rocket Launcher > --- INVENTORY (20) --- Light Ion Engine Light Ion Engine Light Treads Light Treads Aluminum Leg Aluminum Leg Aluminum Leg Seismic Detector Transport Network Coupler Medium Armor Plating EM Pulse Gun Medium Laser Assault Rifle Light Assault Rifle Grenade Launcher Mining Laser Makeshift Axe Peak State ------------ > --- POWER ------------ Ion Engine > --- PROPULSION ------- Aluminum Leg Aluminum Leg > --- UTILITY ---------- High-capacity Storage Unit Signal Interpreter > --- WEAPON ----------- Light Assault Rifle Light Assault Rifle > --- INVENTORY -------- Light Ion Engine Light Ion Engine Light Treads Light Treads Aluminum Leg Aluminum Leg Aluminum Leg Seismic Detector Transport Network Coupler Medium Armor Plating EM Pulse Gun Medium Laser Assault Rifle Light Assault Rifle Grenade Launcher Mining Laser Makeshift Axe [Rating: 9] Favorites ----------- Power Ion Engine Engine Ion Engine Propulsion Aluminum Leg Treads Light Treads Leg Aluminum Leg Utility High-capacity Storage Unit Device Seismic Detector Storage High-capacity Storage Unit Processor Signal Interpreter Weapon Light Assault Rifle Energy Gun Medium Laser Ballistic Gun Light Assault Rifle Launcher Rocket Launcher Build | -11 -10 -10 ------- Run | Yrd Mat Min Slots Evolved . | . . . Power . | . . . Propulsion . | . . . Utility . | . . . Weapon . | . . . Parts Attached 18 | 7 10 1 Power 2 | 1 1 . Engine 2 | 1 1 . Core . | . . . Reactor . | . . . Propulsion 7 | 2 5 . Treads 2 | . 2 . Leg 5 | 2 3 . Wheel . | . . . Hover . | . . . Flight . | . . . Utility 4 | 2 2 . Device 1 | 1 . . Storage 2 | 1 1 . Processor 1 | . 1 . Hackware . | . . . Protection . | . . . Artifact . | . . . Weapon 5 | 2 2 1 Energy Gun 1 | 1 . . Energy Cannon . | . . . Ballistic Gun 3 | 1 2 . Ballistic Cannon . | . . . Launcher 1 | . . 1 Special Weapon . | . . . Impact Weapon . | . . . Slashing Weapon . | . . . Piercing Weapon . | . . . Special Melee Weapon . | . . . Unidentified Prototypes . | . . . Parts Lost 6 | . 3 3 Power 1 | . 1 . Propulsion 3 | . 2 1 Utility . | . . . Weapon 2 | . . 2 Highest Loss Streak 3 | . 2 3 To Critical Strikes . | . . . Average Slot Usage (%) 98 | . 97 99 Engine 12 | . 11 14 Leg 27 | . 26 28 Device 8 | . 14 . Storage 14 | . 14 14 Processor 5 | . . 14 Energy Gun 3 | . 5 . Ballistic Gun 24 | . 22 27 Peak Build Rating 9 | 7 8 9 Average Rating 7 | 4 7 8 On Entrance 5 | . 7 8 Naked Turns . | . . . Heaviest Build 50 | 15 50 47 Greatest Support 40 | 20 40 20 Greatest Overweight (x) 4 | 4 2 2 Average Overweight (x) 1 | . 1 2 Largest Inventory Capacity 20 | 8 20 20 Average Capacity 17 | 7 17 20 Most Carried 18 | 7 17 18 Average Carried 13 | 2 12 16 Final Capacity 20 | 8 20 20 Final Carried 17 | 7 16 17 Class Distribution -------------------- 59% | Scavenger-Mutant 40% | Mutant Dominant Class ---------------- Mutant | -10/Materials Scavenger-Mutant | -10/Mines Resources | -11 -10 -10 ----------- Run | Yrd Mat Min Matter Collected 518 | 183 335 . Remotely . | . . . Salvage Created 594 | 118 459 17 Parts 44 | 11 32 1 Haulers Intercepted 1 | . 1 . Recyclers Shooed 1 | . 1 . Parts Field Recycled . | . . . Retrieved Matter . | . . . Parts Self-Destructed . | . . . Prevented . | . . . Kills | -11 -10 -10 ------- Run | Yrd Mat Min Combat Hostiles Destroyed 14 | . 13 1 Guns 13 | . 13 . AOE 1 | . . 1 Classes Destroyed 6 | 3 3 . Worker 1 | 1 . . Tunneler 3 | 3 . . Hauler 1 | . 1 . Recycler 1 | 1 . . Swarmer 5 | . 5 . Grunt 9 | . 8 1 Best Kill Streak 3 | 2 3 1 Combat Bots Only 3 | . 3 1 Max Kills in Single Turn 2 | 1 2 1 Gunslinging 1 | . 1 . Exploded 1 | . . 1 Melee . | . . . Uniques/NPCs Destroyed . | . . . Combat | -11 -10 -10 -------- Run | Yrd Mat Min Hostile Shots Fired 110 | . 84 26 Missed 29 | . 27 2 Damage Taken 988 | . 612 376 Core 256 | . 122 134 Absorbed by Shields . | . . . Core Remaining (%) 100 | 100 . . Volleys Fired 85 | 11 60 14 Largest 2 | 2 2 2 Hottest 70 | 70 70 40 Shots Fired 160 | 22 119 19 Gun 158 | 22 119 17 Cannon . | . . . Launcher 2 | . . 2 Special . | . . . Kinetic 113 | 11 85 17 Thermal 45 | 11 34 . Explosive 2 | . . 2 Electromagnetic . | . . . Robot Hit Streak 12 | 4 6 12 Robot Miss Streak 6 | 1 6 2 Penetration Max . | . . . Secondary Targets 1 | . 1 . Max Gunslinging Chain 1 | . 1 . Shots Hit Robots 91 | 15 60 16 Core Hits 40 | 6 30 4 Critical Kills . | . . . Critical Parts Destroyed . | . . . Critical Strikes 3 | . 3 . Burn 3 | . 3 . Melee Attacks . | . . . Impact . | . . . Slashing . | . . . Piercing . | . . . Sneak Attacks . | . . . Combat Hostiles . | . . . Follow-up Attacks . | . . . Damage Inflicted 1253 | 189 699 365 Guns 999 | 189 699 111 Cannons . | . . . Explosions 254 | . . 254 Melee . | . . . Ramming . | . . . Kinetic 637 | 77 449 111 Thermal 362 | 112 250 . Explosive 254 | . . 254 Electromagnetic . | . . . Impact . | . . . Slashing . | . . . Piercing . | . . . Highest Corruption . | . . . Average Corruption . | . . . Corruption Purged . | . . . Corruption Blocked . | . . . Overload Shots . | . . . Overflow Damage 28 | . . 28 Projectiles . | . . . Explosions 28 | . . 28 Melee . | . . . Knockbacks . | . . . Impact . | . . . Kinetic . | . . . Secondary . | . . . Self-Inflicted Damage 50 | . . 50 Shots 2 | . . 2 Rammed . | . . . Targets Rammed . | . . . Kicked . | . . . Crushed . | . . . Highest Temperature 81 | 45 81 34 Average Temperature 21 | 16 24 16 Received Heat Transfer 393 | . 213 180 Siege Activations . | . . . Robots Corrupted . | . . . Combat Hostiles . | . . . Parts Fried . | . . . Impact Corruptions . | . . . Robots Melted . | . . . Combat Hostiles . | . . . Parts Melted 3 | 1 2 . Heat Transferred 1295 | 333 962 . Parts Sabotaged . | . . . Parts Stolen . | . . . Parts Stripped . | . . . Power Chain Reactions . | . . . Alert | -11 -10 -10 ------- Run | Yrd Mat Min Peak Influence 188 | 25 188 39 Initial 39 | . 16 39 Average 63 | 10 98 20 Maximum Alert Level . | . . . Low Security (%) 100 | 100 100 100 Level 1 . | . . . Level 2 . | . . . Level 3 . | . . . Level 4 . | . . . Level 5 . | . . . High Security . | . . . Max Security . | . . . Squads Dispatched 3 | . 3 . Investigation . | . . . Extermination . | . . . Reinforcement 3 | . 3 . Assault . | . . . Garrison . | . . . Intercept . | . . . Searches Triggered . | . . . Construction Impeded . | . . . Haulers Reinforced . | . . . Active Scanning Responses . | . . . Cargo Convoy Interrupts . | . . . Stealth | -11 -10 -10 --------- Run | Yrd Mat Min Distress Signals 2 | . 2 . Communications Jammed . | . . . Distress Signals . | . . . Times Spotted 26 | . 24 2 Peak Tracking Total 4 | . 4 2 Tactical Retreats 1 | . 1 . Traps | -11 -10 -10 ------- Run | Yrd Mat Min Traps Triggered 2 | . 2 . Indirectly . | . . . Trap Hack Attempts . | . . . Triggered . | . . . Disarmed . | . . . Reprogrammed . | . . . Reused . | . . . Traps Extracted . | . . . Installed . | . . . Triggered . | . . . Machines | -11 -10 -10 ---------- Run | Yrd Mat Min Machines Disabled 1 | . 1 . Max in Single Turn 1 | . 1 . Machines Repaired . | . . . Machines Dismantled . | . . . Machines Sabotaged . | . . . Overloaded Fab Kills . | . . . Hacking | -11 -10 -10 --------- Run | Yrd Mat Min Machines Accessed 2 | . 2 . Terminals 2 | . 2 . Fabricators . | . . . Repair Stations . | . . . Recycling Units . | . . . Scanalyzers . | . . . Garrison Access . | . . . Total Hacks 7 | . 7 . Successful 1 | . 1 . Failed 6 | . 6 . Catastrophic . | . . . Database Lockouts . | . . . Manual 6 | . 6 . Terminals 7 | . 7 . Fabricators . | . . . Repair Stations . | . . . Recycling Units . | . . . Scanalyzers . | . . . Garrison Access . | . . . Terminal Hacks 1 | . 1 . Terminal Index 1 | . 1 . Fabricator Hacks . | . . . Repair Station Hacks . | . . . Recycling Unit Hacks . | . . . Scanalyzer . | . . . Garrison Access Hacks . | . . . Unauthorized Hacks . | . . . Terminals . | . . . Fabricators . | . . . Repair Stations . | . . . Recycling Units . | . . . Scanalyzers . | . . . Garrison Access . | . . . Data Cores Recovered . | . . . Used . | . . . Hacking Detections 2 | . 2 . Full Trace Events 2 | . 2 . Feedback Events . | . . . Feedback Blocked . | . . . Robot Schematics Acquired . | . . . Robots Built . | . . . Authchips . | . . . Time . | . . . Total Robot Build Rating . | . . . Part Schematics Acquired . | . . . Parts Built . | . . . Authchips . | . . . Time . | . . . Total Part Build Rating . | . . . Parts Repaired . | . . . Time . | . . . Parts Recycled . | . . . Recycled Matter . | . . . Retrieved Matter . | . . . Retrieved Components . | . . . Parts Scanalyzed . | . . . Part Schematics Acquired . | . . . Parts Damaged . | . . . Bothacking | -11 -10 -10 ------------ Run | Yrd Mat Min Used RIF Installer . | . . . Robots Hacked . | . . . Non-combat . | . . . Combat . | . . . Robot Hacks Applied . | . . . Relay Couplers Released . | . . . Fabnet Peak Effective % . | . . . Robots Rewired . | . . . Allies Hacked . | . . . Hacks Repelled . | . . . Allies | -11 -10 -10 -------- Run | Yrd Mat Min Total Allies . | . . . Largest Group . | . . . Highest-Rated Group . | . . . Highest-Rated Ally . | . . . Total Orders . | . . . Ally Attacks . | . . . Total Damage . | . . . Kills . | . . . Allies Corrupted . | . . . Allies Melted . | . . . Intel | -11 -10 -10 ------- Run | Yrd Mat Min Robot Analysis Total . | . . . Derelict Logs Recovered . | . . . Drone Launches . | . . . Drone Recoveries . | . . . Exploration | -11 -10 -10 ------------- Run | Yrd Mat Min Turns Passed 1981 | 108 1108 765 Spaces Moved 758 | 44 437 277 Core 20 | 20 . . Treads 13 | . 13 . Legs 725 | 24 424 277 Wheels . | . . . Hover . | . . . Flight . | . . . Fastest Speed 50 | 50 120 260 Average Speed 221 | 132 206 260 Slowest Speed 260 | 250 260 260 Overloaded Moves . | . . . Propulsion Burnouts . | . . . Robots Hopped . | . . . Cave-ins Triggered . | . . . Exploration Rate (%) 54 | 3 88 72 Regions Visited 2 Branch Regions 1 Pre-discovered Areas 1 | . . 1 Known Exits Taken 1 | . 1 . Unknown Exits Taken 1 | 1 . . Scrap Searched . | . . . Spaces Dug . | . . . Terrain Destroyed 14 | . . 14 Melee . | . . . Projectile . | . . . AOE 14 | . . 14 Terrain Rammed . | . . . Walls Destroyed . | . . . Machines Disabled . | . . . Actions | -11 -10 -10 --------- Run | Yrd Mat Min Total 908 | 68 532 308 Wait 28 | . 14 14 Move 756 | 43 436 277 Hop . | . . . Pick Up 20 | 7 11 2 Fast Attach 8 | 7 1 . Attach 4 | . 3 1 Detach . | . . . Swap 6 | . 6 . Drop 1 | . 1 . Fire 85 | 11 60 14 Melee . | . . . Ram . | . . . Kick . | . . . Crush . | . . . Escape Stasis . | . . . Rewire . | . . . Trap . | . . . Miscellaneous . | . . . Route ------- -11/Scrapyard -10/Materials (discovered 4 exits: [*Mat x3] / *Min) -10/Mines History --------- Turn | Location | Event 28 | -11/Scrapyard | Discovered new exit (range 15) 109 | -11/Scrapyard | Entered Materials 318 | -10/Materials | Build established: Mutant 326 | -10/Materials | Discovered new exit (range 4) 914 | -10/Materials | Discovered new exit (range 4) 1078 | -10/Materials | Build established: Scavenger-Mutant 1096 | -10/Materials | Discovered new exit (range 8) 1172 | -10/Materials | Discovered new exit (range 13) 1214 | -10/Materials | Identified exit to Mines 1217 | -10/Materials | Entered Mines 1218 | -10/Mines | Learned location of Storage (-7) 1475 | -10/Mines | A weapon hastily lodged in a ceiling crevice suddenly fell to the ground 1726 | -10/Mines | Received a Rocket Launcher from a helpful Derelict 1960 | -10/Mines | Core integrity fell below 50% 1972 | -10/Mines | Core integrity fell below 20% 1982 | -10/Mines | Destroyed self with Rocket Launcher Last Messages --------------- 01722_ DW-QCK(g): "You know what I say? NO!" 01723_ DW-QCK(g): "Everyone knows a good old rocket launcher goes a long way." 01724_ DW-QCK(g): "Need to get rid of a swarm? Done. Need a big hole in the wall? Done." 01725_ DW-QCK(g): "Need a small hole in the wall? Leave that to the mining laser wimps, I say!" 01726_ DW-QCK(g): "Would you like a rocket launcher? I know I would if I were you, so I'm going to lend you mine." 01726_ DW-QCK(g) slips back into the shadows. 01729_ Acquired Rocket Launcher. 01780_ T-07 Excavator is excavating. 01799_ U-05 Engineer lays Concrete. 01801_ T-07 Excavator is excavating. 01802_ U-05 Engineer lays Concrete. 01964_ Lgt. Assault Rifle destroyed. 01980_ Destroyed Heat Sink. 01982_ G-34 Mercenary destroyed. 01982_ Aluminum Leg destroyed. 01982_ Destroyed Aluminum Leg. Map ----- +----------------------------------------------------+ | ????????####??# ### ## | | ??????????????# ## ### ######## | | ??????????????# #?# ######?## | | ?????????????## #?# ##?### | | ?????????????# ### ##?### ##??## | | ?????????????# ##?#######????# #???# | | ?????????????# ##???????####??## #???## | | ?????????????# #???????## ##??## ##????## # | | ?????????????## #??????## ##??# ##??????# # | | ??????????????# #?????# #### ######### # | | ??????????????# #?????# # | | ??????????????## ##?????# ########### | | ???????????????#####??????# ########?????????? | | ?????????????????????###### #????????????????? | | ?????????????????????# #????????????????? | | ?????????????????????# ## #????????????????? | | ?????????????????????# ### ##????????#####???? | | ?????????????????????# #?## ############# ##### | | ???????????????????### #??# #?## ## | | ??????????????????## ??# ### | | ??????????????????# ### ## | | ??????????????????# ### | | ?????????????????## %g ###?########## | | ????????????????## ###### ##????????????# | | ???????????????## ### #???# #?????????????? | | ??????????????## #??# @##???#####?????????????? | | ???????????#### ##??####??????????????????????? | | ?????????### ######?????????????????????????? | | ?????????# #?????????????????????????? | | ??# #####?????????????????????? | | ??# """ ##### #?????????????????????? | | ??## """ ????# #?????????????????????? | | ???### ? """ ????###### #?????????????????????? | | ?????????""" #????????## #?????????????????????? | | ???????? ##????????## ###???????????????????? | | ???????? #??????????# ###?????????????????? | | ??????? ???????????# ##????????????????? | | ??????? ????????????# ##???#####???????? | | ?????? #???????????## #??## ##??????? | | ??????## ????????????# #??# #??????? | | ???????# ?????????????# ##??# #??????? | | ??????????????????????# ##?## #??????? | | ??????????????????????# ### ##??????? | | ???????????????????##### """ ##??????? | | ??????????????????## #### """ ###????? | | ??????????????????# #?## """ ####?? | | ??????????????????# ### ## ##? | | ???????????????????# #### #? | | ???????????????????# #?#### ## | | ???????????????????# ? ### # | +----------------------------------------------------+ Best States ------------- Heat Dissipation 25 Energy Generation 10 Energy Capacity 250 Matter Stores 300 Matter Capacity 300 Sight Range 16 Terrain Scan Density 10 Evasion (%) 55 Recoil Reduction 2 Item Schematics ----------------- None Robot Schematics ------------------ None Fabricated ------------ Nothing Alien Tech Used ----------------- None Achievements -------------- None Challenges ------------ None Game ------ Seed CloakingFrostCore Manual? 0 Play Time 00:16:05 Cumulative 8.5 hours Start 2024.10.31 @ 19:00:35 End 2024.10.31 @ 19:15:56 Sessions 1 Manual Loads 0 Difficulty Rogue Special Mode None Game No. 13 Rogue 13 Adventurer 0 Explorer 0 Win Type - Total 0 Types 0/0/0/0/0/0/0/0/0 Lore% 4 Gallery% 7 Achievement% 12 Wizard Run 0 Options --------- Layout 0 ASCII 0 Keyboard 1 Movement Numpad Keybinds 0 Fullscreen 2 Font 18/SmallcapsGlow Map View 76x50 Zoom Use 0% Tactical HUD 1 Map Filters NONE Filters NONE Steam 1 RUN: 539df1e9-0554-4074-a883-999696790d4e